[Event "Titled Tuesday Blitz October 31 Early 2023"]
[White "Kuchava, Ana"]
[Black "Todorovic, Bojan"]
[WhiteFideId "13605348"]
[BlackFideId "917087"]
[WhiteElo "2259"]
[BlackElo "2417"]
[Result "1/2-1/2"]
[Round "11"]
[TimeControl "180+1"]
[Date "2023.10.31"]
[WhiteClock "0:00:04"]
[BlackClock "0:00:03"]
[Board "97"]

1. d4 {[%clk 0:03:00]}  Nf6 {[%clk 0:02:59]} 2. Nf3 {[%clk 0:03:00]}  g6 {[%clk 0:02:58]} 3. c4 {[%clk 0:02:59]}  Bg7 {[%clk 0:02:58]} 4. Nc3 {[%clk 0:02:59]}  O-O {[%clk 0:02:58]} 5. e4 {[%clk 0:02:58]}  d6 {[%clk 0:02:58]} 6. Be2 {[%clk 0:02:59]}  e5 {[%clk 0:02:53]} 7. O-O {[%clk 0:02:58]}  Na6 {[%clk 0:02:49]} 8. Re1 {[%clk 0:02:51]}  c6 {[%clk 0:02:46]} 9. Bf1 {[%clk 0:02:44]}  exd4 {[%clk 0:02:35]} 10. Nxd4 {[%clk 0:02:43]}  Nc5 {[%clk 0:02:34]} 11. f3 {[%clk 0:02:39]}  a5 {[%clk 0:02:32]} 12. Be3 {[%clk 0:02:38]}  Nh5 {[%clk 0:02:17]} 13. Qd2 {[%clk 0:02:35]}  Be5 {[%clk 0:02:11]} 14. f4 {[%clk 0:02:23]}  Bg7 {[%clk 0:02:10]} 15. Nb3 {[%clk 0:02:09]}  Bxc3 {[%clk 0:02:02]} 16. Qxc3 {[%clk 0:01:58]}  Nxe4 {[%clk 0:02:02]} 17. Qd4 {[%clk 0:01:55]}  f5 {[%clk 0:01:59]} 18. Rad1 {[%clk 0:01:51]}  a4 {[%clk 0:01:54]} 19. Nd2 {[%clk 0:01:50]}  Nhf6 {[%clk 0:01:49]} 20. Nxe4 {[%clk 0:01:50]}  Nxe4 {[%clk 0:01:48]} 21. Bd3 {[%clk 0:01:51]}  Nc5 {[%clk 0:01:40]} 22. Bc2 {[%clk 0:01:50]}  a3 {[%clk 0:00:53]} 23. b4 {[%clk 0:01:43]}  Na6 {[%clk 0:00:52]} 24. Bd2 {[%clk 0:01:29]}  Qf6 {[%clk 0:00:46]} 25. Qxf6 {[%clk 0:01:27]}  Rxf6 {[%clk 0:00:46]} 26. Bc3 {[%clk 0:01:27]}  Re6 {[%clk 0:00:44]} 27. Bb3 {[%clk 0:01:24]}  c5 {[%clk 0:00:42]} 28. b5 {[%clk 0:01:18]}  Nc7 {[%clk 0:00:29]} 29. Rxe6 {[%clk 0:01:10]}  Bxe6 {[%clk 0:00:26]} 30. Rxd6 {[%clk 0:01:10]}  Kf7 {[%clk 0:00:26]} 31. Be5 {[%clk 0:01:08]}  Nxb5 {[%clk 0:00:16]} 32. cxb5 {[%clk 0:00:32]}  Bxb3 {[%clk 0:00:15]} 33. axb3 {[%clk 0:00:32]}  a2 {[%clk 0:00:15]} 34. Rd7+ {[%clk 0:00:27]}  Ke6 {[%clk 0:00:13]} 35. Rd6+ {[%clk 0:00:26]}  Ke7 {[%clk 0:00:14]} 36. Rb6 {[%clk 0:00:26]}  a1=Q+ {[%clk 0:00:13]} 37. Bxa1 {[%clk 0:00:24]}  Rxa1+ {[%clk 0:00:13]} 38. Kf2 {[%clk 0:00:24]}  Ra7 {[%clk 0:00:09]} 39. Ke3 {[%clk 0:00:21]}  Kd7 {[%clk 0:00:09]} 40. Kd3 {[%clk 0:00:21]}  Kc7 {[%clk 0:00:08]} 41. Rf6 {[%clk 0:00:21]}  Ra2 {[%clk 0:00:09]} 42. Kc4 {[%clk 0:00:14]}  Rc2+ {[%clk 0:00:08]} 43. Kd3 {[%clk 0:00:13]}  Rxg2 {[%clk 0:00:07]} 44. Kc4 {[%clk 0:00:09]}  Rc2+ {[%clk 0:00:05]} 45. Kd5 {[%clk 0:00:09]}  Rc3 {[%clk 0:00:05]} 46. b6+ {[%clk 0:00:07]}  Kd7 {[%clk 0:00:05]} 47. Rf7+ {[%clk 0:00:07]}  Kc8 {[%clk 0:00:04]} 48. Kd6 {[%clk 0:00:07]}  Rd3+ {[%clk 0:00:03]} 49. Kxc5 {[%clk 0:00:07]}  Rxb3 {[%clk 0:00:03]} 50. Rc7+ {[%clk 0:00:05]}  Kb8 {[%clk 0:00:02]} 51. Rxh7 {[%clk 0:00:06]}  Kc8 {[%clk 0:00:01]} 52. Rh8+ {[%clk 0:00:04]}  Kd7 {[%clk 0:00:01]} 53. Rh7+ {[%clk 0:00:04]}  Kc8 {[%clk 0:00:02]} 54. Rh8+ {[%clk 0:00:04]}  Kd7 {[%clk 0:00:02]} 55. Rh7+ {[%clk 0:00:04]}  Kc8 {[%clk 0:00:03]} 1/2-1/2


[Site "https://www.chess.com"]

[Event "Titled Tuesday Blitz October 31 Early 2023"]
[White "Tsyhanchuk, Stanislav"]
[Black "MIM06"]
[WhiteFideId "13505130"]
[WhiteElo "2406"]
[BlackElo "2209"]
[Result "1-0"]
[Round "11"]
[TimeControl "180+1"]
[Date "2023.10.31"]
[WhiteClock "0:00:15"]
[BlackClock "0:00:43"]
[Board "98"]

1. e4 {[%clk 0:03:00]}  c6 {[%clk 0:02:59]} 2. d4 {[%clk 0:03:00]}  d5 {[%clk 0:02:59]} 3. e5 {[%clk 0:03:01]}  Bf5 {[%clk 0:03:00]} 4. h4 {[%clk 0:03:00]}  h5 {[%clk 0:03:00]} 5. c4 {[%clk 0:03:01]}  e6 {[%clk 0:02:57]} 6. Nc3 {[%clk 0:03:01]}  Bb4 {[%clk 0:02:56]} 7. a3 {[%clk 0:02:51]}  Bxc3+ {[%clk 0:02:52]} 8. bxc3 {[%clk 0:02:52]}  Ne7 {[%clk 0:02:30]} 9. Qb3 {[%clk 0:02:45]}  Qc7 {[%clk 0:02:11]} 10. Bg5 {[%clk 0:02:38]}  a5 {[%clk 0:02:06]} 11. c5 {[%clk 0:01:55]}  Nd7 {[%clk 0:01:59]} 12. Ne2 {[%clk 0:01:51]}  b6 {[%clk 0:01:59]} 13. cxb6 {[%clk 0:01:47]}  Qxb6 {[%clk 0:01:57]} 14. Qxb6 {[%clk 0:01:45]}  Nxb6 {[%clk 0:01:58]} 15. Nf4 {[%clk 0:01:38]}  Kd7 {[%clk 0:01:45]} 16. Bd3 {[%clk 0:01:31]}  g6 {[%clk 0:01:40]} 17. Bxe7 {[%clk 0:01:22]}  Bxd3 {[%clk 0:01:31]} 18. Bc5 {[%clk 0:01:12]}  Na4 {[%clk 0:01:24]} 19. Nxd3 {[%clk 0:01:11]}  Rab8 {[%clk 0:01:25]} 20. Kd2 {[%clk 0:00:45]}  Rb3 {[%clk 0:01:22]} 21. Rab1 {[%clk 0:00:31]}  Rhb8 {[%clk 0:01:23]} 22. Rxb3 {[%clk 0:00:27]}  Rxb3 {[%clk 0:01:23]} 23. Rc1 {[%clk 0:00:26]}  Nb2 {[%clk 0:01:15]} 24. Nxb2 {[%clk 0:00:25]}  Rxb2+ {[%clk 0:01:16]} 25. Rc2 {[%clk 0:00:26]}  Rb1 {[%clk 0:01:16]} 26. g3 {[%clk 0:00:24]}  Kc7 {[%clk 0:01:14]} 27. Ke3 {[%clk 0:00:22]}  Kd7 {[%clk 0:01:11]} 28. Kf4 {[%clk 0:00:20]}  Ke8 {[%clk 0:01:05]} 29. Kg5 {[%clk 0:00:21]}  Kd7 {[%clk 0:01:05]} 30. f3 {[%clk 0:00:21]}  Ke8 {[%clk 0:01:06]} 31. g4 {[%clk 0:00:21]}  hxg4 {[%clk 0:01:02]} 32. fxg4 {[%clk 0:00:22]}  Kd7 {[%clk 0:01:02]} 33. h5 {[%clk 0:00:21]}  gxh5 {[%clk 0:01:02]} 34. gxh5 {[%clk 0:00:22]}  Rg1+ {[%clk 0:01:01]} 35. Kf6 {[%clk 0:00:23]}  Ke8 {[%clk 0:01:01]} 36. Rb2 {[%clk 0:00:21]}  Rf1+ {[%clk 0:00:55]} 37. Kg7 {[%clk 0:00:20]}  Rg1+ {[%clk 0:00:55]} 38. Kh7 {[%clk 0:00:20]}  Rg5 {[%clk 0:00:54]} 39. Rb8+ {[%clk 0:00:20]}  Kd7 {[%clk 0:00:54]} 40. h6 {[%clk 0:00:18]}  f6 {[%clk 0:00:52]} 41. exf6 {[%clk 0:00:16]}  e5 {[%clk 0:00:43]} 42. f7 {[%clk 0:00:15]} 1-0


[Site "https://www.chess.com"]

[Event "Titled Tuesday Blitz October 31 Early 2023"]
[White "Mirzanurov, Bulat"]
[Black "vishwa_vijeta"]
[WhiteFideId "4184521"]
[WhiteElo "2227"]
[BlackElo "2474"]
[Result "1-0"]
[Round "11"]
[TimeControl "180+1"]
[Date "2023.10.31"]
[WhiteClock "0:00:04"]
[BlackClock "0:00:00"]
[Board "100"]

1. e4 {[%clk 0:03:00]}  c5 {[%clk 0:02:57]} 2. Nf3 {[%clk 0:02:59]}  d6 {[%clk 0:02:57]} 3. d4 {[%clk 0:02:57]}  cxd4 {[%clk 0:02:58]} 4. Nxd4 {[%clk 0:02:58]}  Nf6 {[%clk 0:02:57]} 5. f3 {[%clk 0:02:58]}  e5 {[%clk 0:02:57]} 6. Nb3 {[%clk 0:02:55]}  Be6 {[%clk 0:02:55]} 7. Bg5 {[%clk 0:02:32]}  d5 {[%clk 0:02:41]} 8. Bxf6 {[%clk 0:02:25]}  gxf6 {[%clk 0:02:38]} 9. exd5 {[%clk 0:02:24]}  Qxd5 {[%clk 0:02:19]} 10. Qxd5 {[%clk 0:02:17]}  Bxd5 {[%clk 0:02:20]} 11. Nc3 {[%clk 0:02:18]}  Bc6 {[%clk 0:02:20]} 12. O-O-O {[%clk 0:02:12]}  Nd7 {[%clk 0:02:07]} 13. Nd5 {[%clk 0:02:01]}  Bh6+ {[%clk 0:02:05]} 14. Kb1 {[%clk 0:02:00]}  Bxd5 {[%clk 0:02:04]} 15. Rxd5 {[%clk 0:02:00]}  Ke7 {[%clk 0:02:04]} 16. Rd1 {[%clk 0:01:49]}  a5 {[%clk 0:02:00]} 17. a4 {[%clk 0:01:45]}  Rhc8 {[%clk 0:01:50]} 18. Bb5 {[%clk 0:01:35]}  Nc5 {[%clk 0:01:38]} 19. Nxc5 {[%clk 0:01:33]}  Rxc5 {[%clk 0:01:39]} 20. Rd7+ {[%clk 0:01:33]}  Kf8 {[%clk 0:01:37]} 21. Rxb7 {[%clk 0:01:31]}  Rd8 {[%clk 0:01:37]} 22. Rd7 {[%clk 0:01:28]}  Rxd7 {[%clk 0:01:23]} 23. Bxd7 {[%clk 0:01:27]}  Rd5 {[%clk 0:01:23]} 24. Bf5 {[%clk 0:01:20]}  Rd4 {[%clk 0:01:21]} 25. b3 {[%clk 0:01:16]}  Rd2 {[%clk 0:01:19]} 26. g4 {[%clk 0:01:06]}  Kg7 {[%clk 0:01:10]} 27. h4 {[%clk 0:01:05]}  Be3 {[%clk 0:01:05]} 28. h5 {[%clk 0:00:56]}  h6 {[%clk 0:01:03]} 29. Be4 {[%clk 0:00:56]}  Bd4 {[%clk 0:01:02]} 30. Kc1 {[%clk 0:00:42]}  Rf2 {[%clk 0:00:58]} 31. Rd1 {[%clk 0:00:41]}  Bc3 {[%clk 0:00:58]} 32. Kb1 {[%clk 0:00:33]}  Re2 {[%clk 0:00:57]} 33. Bf5 {[%clk 0:00:26]}  Bd4 {[%clk 0:00:55]} 34. Bd3 {[%clk 0:00:22]}  Rf2 {[%clk 0:00:52]} 35. Rf1 {[%clk 0:00:22]}  Rd2 {[%clk 0:00:49]} 36. Kc1 {[%clk 0:00:20]}  Be3 {[%clk 0:00:49]} 37. Kb1 {[%clk 0:00:19]}  Bd4 {[%clk 0:00:49]} 38. Kc1 {[%clk 0:00:18]}  Rh2 {[%clk 0:00:47]} 39. Kb1 {[%clk 0:00:15]}  Kf8 {[%clk 0:00:47]} 40. Ka2 {[%clk 0:00:15]}  Ke7 {[%clk 0:00:47]} 41. f4 {[%clk 0:00:11]}  exf4 {[%clk 0:00:38]} 42. Rxf4 {[%clk 0:00:11]}  Be5 {[%clk 0:00:38]} 43. Rc4 {[%clk 0:00:08]}  Rh1 {[%clk 0:00:33]} 44. c3 {[%clk 0:00:07]}  Rh2+ {[%clk 0:00:33]} 45. Kb1 {[%clk 0:00:07]}  Rh3 {[%clk 0:00:32]} 46. Bc2 {[%clk 0:00:06]}  Bxc3 {[%clk 0:00:31]} 47. Re4+ {[%clk 0:00:03]}  Kd6 {[%clk 0:00:31]} 48. Rc4 {[%clk 0:00:03]}  Rh1+ {[%clk 0:00:29]} 49. Bd1 {[%clk 0:00:02]}  Be5 {[%clk 0:00:20]} 50. Kc2 {[%clk 0:00:02]}  Rh2+ {[%clk 0:00:20]} 51. Kc1 {[%clk 0:00:02]}  Kd5 {[%clk 0:00:20]} 52. Bf3+ {[%clk 0:00:02]}  Kd6 {[%clk 0:00:20]} 53. Rc6+ {[%clk 0:00:02]}  Kd7 {[%clk 0:00:20]} 54. Rc4 {[%clk 0:00:02]}  Rh3 {[%clk 0:00:21]} 55. Bd1 {[%clk 0:00:03]}  Rg3 {[%clk 0:00:19]} 56. Re4 {[%clk 0:00:02]}  Ke6 {[%clk 0:00:18]} 57. Rc4 {[%clk 0:00:03]}  f5 {[%clk 0:00:18]} 58. gxf5+ {[%clk 0:00:02]}  Kxf5 {[%clk 0:00:18]} 59. Rc5 {[%clk 0:00:03]}  Kf6 {[%clk 0:00:17]} 60. Rxa5 {[%clk 0:00:03]}  Rc3+ {[%clk 0:00:15]} 61. Kb1 {[%clk 0:00:04]}  Rd3 {[%clk 0:00:14]} 62. Kc1 {[%clk 0:00:04]}  Bf4+ {[%clk 0:00:13]} 63. Kc2 {[%clk 0:00:05]}  Rd2+ {[%clk 0:00:13]} 64. Kc3 {[%clk 0:00:05]}  Rxd1 {[%clk 0:00:13]} 65. Ra6+ {[%clk 0:00:06]}  Kf5 {[%clk 0:00:13]} 66. a5 {[%clk 0:00:06]}  Ra1 {[%clk 0:00:11]} 67. b4 {[%clk 0:00:07]}  Kg4 {[%clk 0:00:08]} 68. b5 {[%clk 0:00:07]}  f5 {[%clk 0:00:07]} 69. b6 {[%clk 0:00:07]}  Be5+ {[%clk 0:00:06]} 70. Kc4 {[%clk 0:00:07]}  f4 {[%clk 0:00:07]} 71. b7 {[%clk 0:00:07]}  f3 {[%clk 0:00:07]} 72. Rg6+ {[%clk 0:00:07]}  Kxh5 {[%clk 0:00:06]} 73. Re6 {[%clk 0:00:06]}  Bf4 {[%clk 0:00:06]} 74. Rf6 {[%clk 0:00:06]}  Bg5 {[%clk 0:00:01]} 75. Rf5 {[%clk 0:00:03]}  Rb1 {[%clk 0:00:01]} 76. a6 {[%clk 0:00:04]}  f2 {[%clk 0:00:01]} 77. Rxf2 {[%clk 0:00:04]}  Kg4 {[%clk 0:00:01]} 78. a7 {[%clk 0:00:04]}  Be3 {[%clk 0:00:01]} 79. a8=Q {[%clk 0:00:04]}  Bxf2 {[%clk 0:00:02]} 80. b8=Q {[%clk 0:00:04]}  Rxb8 {[%clk 0:00:02]} 81. Qxb8 {[%clk 0:00:05]}  Kf3 {[%clk 0:00:03]} 82. Qf8+ {[%clk 0:00:04]}  Kg2 {[%clk 0:00:04]} 83. Qxh6 {[%clk 0:00:04]}  Bg3 {[%clk 0:00:00]} 84. Kd4 {[%clk 0:00:04]} 1-0


[Site "https://www.chess.com"]

[Event "Titled Tuesday Blitz October 31 Early 2023"]
[White "Vifleemskaia, Svetlana"]
[Black "UK_23"]
[WhiteFideId "4129490"]
[WhiteElo "2262"]
[BlackElo "2386"]
[Result "1-0"]
[Round "11"]
[TimeControl "180+1"]
[Date "2023.10.31"]
[WhiteClock "0:00:06"]
[BlackClock "0:00:30"]
[Board "102"]

1. d4 {[%clk 0:03:00]}  d5 {[%clk 0:02:44]} 2. c4 {[%clk 0:03:00]}  e6 {[%clk 0:02:44]} 3. Nc3 {[%clk 0:03:00]}  Nf6 {[%clk 0:02:45]} 4. cxd5 {[%clk 0:02:59]}  exd5 {[%clk 0:02:45]} 5. Bg5 {[%clk 0:02:59]}  Be7 {[%clk 0:02:46]} 6. e3 {[%clk 0:02:58]}  O-O {[%clk 0:02:47]} 7. Bd3 {[%clk 0:02:57]}  Re8 {[%clk 0:02:47]} 8. Qc2 {[%clk 0:02:57]}  h6 {[%clk 0:02:46]} 9. Bh4 {[%clk 0:02:56]}  c5 {[%clk 0:02:47]} 10. Nge2 {[%clk 0:02:56]}  Nc6 {[%clk 0:02:46]} 11. a3 {[%clk 0:02:54]}  c4 {[%clk 0:02:38]} 12. Bf5 {[%clk 0:02:53]}  Bxf5 {[%clk 0:02:33]} 13. Qxf5 {[%clk 0:02:52]}  b5 {[%clk 0:02:28]} 14. Bxf6 {[%clk 0:02:25]}  Bxf6 {[%clk 0:02:28]} 15. Qxd5 {[%clk 0:02:25]}  Qxd5 {[%clk 0:01:47]} 16. Nxd5 {[%clk 0:01:49]}  Bd8 {[%clk 0:01:46]} 17. O-O {[%clk 0:01:45]}  a5 {[%clk 0:01:37]} 18. Rfc1 {[%clk 0:01:44]}  a4 {[%clk 0:01:26]} 19. h3 {[%clk 0:01:30]}  Na5 {[%clk 0:01:24]} 20. Rd1 {[%clk 0:01:23]}  Nb3 {[%clk 0:01:24]} 21. Rab1 {[%clk 0:01:23]}  Rb8 {[%clk 0:01:24]} 22. Nec3 {[%clk 0:01:20]}  Ba5 {[%clk 0:01:23]} 23. g4 {[%clk 0:01:11]}  Kf8 {[%clk 0:01:21]} 24. Kg2 {[%clk 0:01:10]}  g6 {[%clk 0:01:12]} 25. h4 {[%clk 0:01:09]}  Kg7 {[%clk 0:01:13]} 26. g5 {[%clk 0:01:05]}  hxg5 {[%clk 0:01:12]} 27. hxg5 {[%clk 0:01:06]}  Rh8 {[%clk 0:01:13]} 28. Rh1 {[%clk 0:01:05]}  Nd2 {[%clk 0:01:13]} 29. Rxh8 {[%clk 0:01:00]}  Rxh8 {[%clk 0:01:14]} 30. Rh1 {[%clk 0:01:00]}  Re8 {[%clk 0:01:10]} 31. Rd1 {[%clk 0:00:51]}  Ne4 {[%clk 0:01:06]} 32. Nxe4 {[%clk 0:00:45]}  Rxe4 {[%clk 0:01:07]} 33. Kf3 {[%clk 0:00:28]}  Rh4 {[%clk 0:01:04]} 34. Nc3 {[%clk 0:00:26]}  Bxc3 {[%clk 0:00:56]} 35. bxc3 {[%clk 0:00:26]}  Rh5 {[%clk 0:00:56]} 36. Kg4 {[%clk 0:00:22]}  Rh2 {[%clk 0:00:51]} 37. Rd2 {[%clk 0:00:21]}  f5+ {[%clk 0:00:50]} 38. gxf6+ {[%clk 0:00:21]}  Kxf6 {[%clk 0:00:50]} 39. Rb2 {[%clk 0:00:20]}  Rh5 {[%clk 0:00:39]} 40. e4 {[%clk 0:00:19]}  Ke6 {[%clk 0:00:39]} 41. f4 {[%clk 0:00:14]}  Kd6 {[%clk 0:00:38]} 42. f5 {[%clk 0:00:12]}  Rh1 {[%clk 0:00:34]} 43. fxg6 {[%clk 0:00:11]}  Kc6 {[%clk 0:00:34]} 44. Kf5 {[%clk 0:00:10]}  Rf1+ {[%clk 0:00:34]} 45. Ke6 {[%clk 0:00:10]}  Rg1 {[%clk 0:00:34]} 46. Kf7 {[%clk 0:00:10]}  Rf1+ {[%clk 0:00:34]} 47. Kg8 {[%clk 0:00:10]}  Rg1 {[%clk 0:00:35]} 48. g7 {[%clk 0:00:10]}  Kb6 {[%clk 0:00:35]} 49. e5 {[%clk 0:00:09]}  Kc6 {[%clk 0:00:36]} 50. e6 {[%clk 0:00:09]}  Kd6 {[%clk 0:00:36]} 51. Rxb5 {[%clk 0:00:09]}  Kxe6 {[%clk 0:00:37]} 52. Rc5 {[%clk 0:00:08]}  Ra1 {[%clk 0:00:34]} 53. Rxc4 {[%clk 0:00:07]}  Rg1 {[%clk 0:00:31]} 54. Rxa4 {[%clk 0:00:07]}  Kf6 {[%clk 0:00:31]} 55. Ra6+ {[%clk 0:00:06]}  Kf5 {[%clk 0:00:30]} 56. Kf7 {[%clk 0:00:06]} 1-0


[Site "https://www.chess.com"]

[Event "Titled Tuesday Blitz October 31 Early 2023"]
[White "Buscar, Michael"]
[Black "Witty_Alien"]
[WhiteFideId "2603616"]
[WhiteElo "2321"]
[BlackElo "2251"]
[Result "1-0"]
[Round "11"]
[TimeControl "180+1"]
[Date "2023.10.31"]
[WhiteClock "0:00:22"]
[BlackClock "0:00:02"]
[Board "103"]

1. e4 {[%clk 0:02:56]}  c5 {[%clk 0:02:59]} 2. Nf3 {[%clk 0:02:56]}  d6 {[%clk 0:02:59]} 3. Bb5+ {[%clk 0:02:55]}  Bd7 {[%clk 0:02:51]} 4. a4 {[%clk 0:02:54]}  g5 {[%clk 0:02:46]} 5. Nxg5 {[%clk 0:02:51]}  Nf6 {[%clk 0:02:40]} 6. Ra3 {[%clk 0:02:39]}  Rg8 {[%clk 0:02:37]} 7. Rg3 {[%clk 0:02:37]}  h6 {[%clk 0:01:28]} 8. Nh7 {[%clk 0:02:35]}  Rg6 {[%clk 0:00:40]} 9. Nxf8 {[%clk 0:02:22]}  Kxf8 {[%clk 0:00:35]} 10. Bxd7 {[%clk 0:02:21]}  Qxd7 {[%clk 0:00:31]} 11. d3 {[%clk 0:02:15]}  Qxa4 {[%clk 0:00:29]} 12. Rxg6 {[%clk 0:02:14]}  fxg6 {[%clk 0:00:28]} 13. Bxh6+ {[%clk 0:02:14]}  Kf7 {[%clk 0:00:28]} 14. O-O {[%clk 0:02:13]}  Nc6 {[%clk 0:00:25]} 15. Nc3 {[%clk 0:02:07]}  Qd4 {[%clk 0:00:20]} 16. Be3 {[%clk 0:02:02]}  Qe5 {[%clk 0:00:19]} 17. f4 {[%clk 0:02:01]}  Qe6 {[%clk 0:00:19]} 18. Qf3 {[%clk 0:01:51]}  Rh8 {[%clk 0:00:18]} 19. h3 {[%clk 0:01:45]}  Ke8 {[%clk 0:00:13]} 20. Nd5 {[%clk 0:01:40]}  Kd7 {[%clk 0:00:10]} 21. c4 {[%clk 0:01:31]}  Kc8 {[%clk 0:00:04]} 22. Qg3 {[%clk 0:01:24]}  Kb8 {[%clk 0:00:02]} 23. Qxg6 {[%clk 0:00:45]}  Rg8 {[%clk 0:00:01]} 24. f5 {[%clk 0:00:46]}  Qe5 {[%clk 0:00:01]} 25. Qf7 {[%clk 0:00:40]}  Qxb2 {[%clk 0:00:01]} 26. Rf2 {[%clk 0:00:36]}  Qb1+ {[%clk 0:00:01]} 27. Kh2 {[%clk 0:00:37]}  Rc8 {[%clk 0:00:01]} 28. Nxf6 {[%clk 0:00:32]}  exf6 {[%clk 0:00:02]} 29. Qxf6 {[%clk 0:00:33]}  Ne5 {[%clk 0:00:03]} 30. Qxd6+ {[%clk 0:00:32]}  Ka8 {[%clk 0:00:03]} 31. Qxe5 {[%clk 0:00:33]}  Rg8 {[%clk 0:00:03]} 32. Qxc5 {[%clk 0:00:29]}  Qa1 {[%clk 0:00:03]} 33. f6 {[%clk 0:00:23]}  a5 {[%clk 0:00:02]} 34. f7 {[%clk 0:00:23]}  Rb8 {[%clk 0:00:02]} 35. Qa7# {[%clk 0:00:22]} 1-0


[Site "https://www.chess.com"]

[Event "Titled Tuesday Blitz October 31 Early 2023"]
[White "Vila Dupla, Aurelio"]
[Black "Seletsky, Grigory"]
[WhiteFideId "2203383"]
[BlackFideId "14112191"]
[WhiteElo "2244"]
[BlackElo "2464"]
[Result "0-1"]
[Round "11"]
[TimeControl "180+1"]
[Date "2023.10.31"]
[WhiteClock "0:00:00"]
[BlackClock "0:00:13"]
[Board "108"]

1. Nf3 {[%clk 0:03:00]}  b5 {[%clk 0:02:52]} 2. e4 {[%clk 0:02:58]}  Bb7 {[%clk 0:02:52]} 3. Qe2 {[%clk 0:02:55]}  a6 {[%clk 0:02:51]} 4. g3 {[%clk 0:02:54]}  d6 {[%clk 0:02:46]} 5. Bg2 {[%clk 0:02:54]}  e5 {[%clk 0:02:45]} 6. a4 {[%clk 0:02:46]}  c6 {[%clk 0:02:34]} 7. d4 {[%clk 0:02:36]}  Nd7 {[%clk 0:02:32]} 8. axb5 {[%clk 0:02:31]}  cxb5 {[%clk 0:02:30]} 9. O-O {[%clk 0:02:29]}  Ngf6 {[%clk 0:02:29]} 10. dxe5 {[%clk 0:02:25]}  dxe5 {[%clk 0:02:28]} 11. Rd1 {[%clk 0:02:10]}  Qc7 {[%clk 0:02:21]} 12. Nc3 {[%clk 0:02:10]}  Bc5 {[%clk 0:02:16]} 13. Nd5 {[%clk 0:01:50]}  Nxd5 {[%clk 0:02:14]} 14. exd5 {[%clk 0:01:50]}  O-O {[%clk 0:02:11]} 15. Be3 {[%clk 0:01:47]}  Rfe8 {[%clk 0:02:00]} 16. Ng5 {[%clk 0:01:29]}  Bxe3 {[%clk 0:01:48]} 17. fxe3 {[%clk 0:01:24]}  Nf6 {[%clk 0:01:41]} 18. e4 {[%clk 0:00:56]}  Rad8 {[%clk 0:01:32]} 19. Re1 {[%clk 0:00:46]}  Re7 {[%clk 0:01:31]} 20. Bh3 {[%clk 0:00:38]}  Ne8 {[%clk 0:01:31]} 21. Nf3 {[%clk 0:00:36]}  Nd6 {[%clk 0:01:30]} 22. c3 {[%clk 0:00:33]}  h6 {[%clk 0:01:00]} 23. Nd2 {[%clk 0:00:33]}  Qb6+ {[%clk 0:00:50]} 24. Qf2 {[%clk 0:00:29]}  Qc7 {[%clk 0:00:48]} 25. Nb3 {[%clk 0:00:27]}  f5 {[%clk 0:00:34]} 26. Na5 {[%clk 0:00:19]}  fxe4 {[%clk 0:00:30]} 27. Nxb7 {[%clk 0:00:16]}  Qxb7 {[%clk 0:00:30]} 28. Be6+ {[%clk 0:00:17]}  Rxe6 {[%clk 0:00:19]} 29. dxe6 {[%clk 0:00:17]}  Rf8 {[%clk 0:00:19]} 30. Qc5 {[%clk 0:00:16]}  Nc4 {[%clk 0:00:17]} 31. Rad1 {[%clk 0:00:13]}  e3 {[%clk 0:00:14]} 32. Rd7 {[%clk 0:00:12]}  Qf3 {[%clk 0:00:14]} 33. Qxf8+ {[%clk 0:00:02]}  Qxf8 {[%clk 0:00:13]} 34. Rf1 {[%clk 0:00:00]}  Qc5 {[%clk 0:00:13]} 0-1


[Site "https://www.chess.com"]

[Event "Titled Tuesday Blitz October 31 Early 2023"]
[White "Arutla, Aditya"]
[Black "Thomas, Anysia"]
[WhiteFideId "30961998"]
[BlackFideId "670472"]
[WhiteElo "2459"]
[BlackElo "2235"]
[Result "1-0"]
[Round "11"]
[TimeControl "180+1"]
[Date "2023.10.31"]
[WhiteClock "0:00:53"]
[BlackClock "0:00:00"]
[Board "109"]

1. d4 {[%clk 0:03:00]}  Nf6 {[%clk 0:02:19]} 2. Bf4 {[%clk 0:02:57]}  g6 {[%clk 0:02:19]} 3. Nf3 {[%clk 0:02:54]}  Bg7 {[%clk 0:02:19]} 4. e3 {[%clk 0:02:54]}  O-O {[%clk 0:02:17]} 5. Be2 {[%clk 0:02:54]}  d6 {[%clk 0:02:16]} 6. O-O {[%clk 0:02:54]}  b6 {[%clk 0:02:17]} 7. c3 {[%clk 0:02:53]}  Bb7 {[%clk 0:02:17]} 8. a4 {[%clk 0:02:53]}  c5 {[%clk 0:02:16]} 9. a5 {[%clk 0:02:50]}  Re8 {[%clk 0:02:04]} 10. Nbd2 {[%clk 0:02:38]}  Bc6 {[%clk 0:02:02]} 11. b4 {[%clk 0:02:34]}  Ne4 {[%clk 0:01:55]} 12. Nxe4 {[%clk 0:02:29]}  Bxe4 {[%clk 0:01:54]} 13. axb6 {[%clk 0:02:23]}  axb6 {[%clk 0:01:52]} 14. Rxa8 {[%clk 0:02:19]}  Bxa8 {[%clk 0:01:53]} 15. Qa4 {[%clk 0:02:17]}  Nd7 {[%clk 0:01:49]} 16. Ra1 {[%clk 0:02:12]}  Qc7 {[%clk 0:01:42]} 17. Qa7 {[%clk 0:02:09]}  Qxa7 {[%clk 0:01:10]} 18. Rxa7 {[%clk 0:02:05]}  Nf6 {[%clk 0:01:11]} 19. Bb5 {[%clk 0:01:56]}  Rc8 {[%clk 0:01:04]} 20. h3 {[%clk 0:01:42]}  Nd5 {[%clk 0:00:51]} 21. Ba6 {[%clk 0:01:32]}  Rb8 {[%clk 0:00:44]} 22. bxc5 {[%clk 0:01:30]}  bxc5 {[%clk 0:00:42]} 23. dxc5 {[%clk 0:01:28]}  Nxf4 {[%clk 0:00:14]} 24. exf4 {[%clk 0:01:29]}  dxc5 {[%clk 0:00:14]} 25. Rxe7 {[%clk 0:01:26]}  Bxf3 {[%clk 0:00:13]} 26. gxf3 {[%clk 0:01:25]}  Bxc3 {[%clk 0:00:12]} 27. Bc4 {[%clk 0:01:26]}  Rf8 {[%clk 0:00:12]} 28. Kf1 {[%clk 0:01:25]}  Kg7 {[%clk 0:00:11]} 29. Ke2 {[%clk 0:01:26]}  Kf6 {[%clk 0:00:11]} 30. Rc7 {[%clk 0:01:26]}  Bd4 {[%clk 0:00:11]} 31. Rc6+ {[%clk 0:01:24]}  Kg7 {[%clk 0:00:11]} 32. Rc7 {[%clk 0:01:22]}  Kf6 {[%clk 0:00:10]} 33. Kf1 {[%clk 0:01:22]}  h5 {[%clk 0:00:09]} 34. Rc6+ {[%clk 0:01:20]}  Kg7 {[%clk 0:00:09]} 35. Bd3 {[%clk 0:01:18]}  Re8 {[%clk 0:00:08]} 36. f5 {[%clk 0:01:18]}  gxf5 {[%clk 0:00:04]} 37. Bxf5 {[%clk 0:01:19]}  Re7 {[%clk 0:00:04]} 38. Bd3 {[%clk 0:01:18]}  h4 {[%clk 0:00:04]} 39. Bc4 {[%clk 0:01:16]}  Ra7 {[%clk 0:00:04]} 40. Ke2 {[%clk 0:01:11]}  Rb7 {[%clk 0:00:03]} 41. Kd3 {[%clk 0:01:06]}  Ra7 {[%clk 0:00:03]} 42. Ke4 {[%clk 0:01:06]}  Re7+ {[%clk 0:00:02]} 43. Kf5 {[%clk 0:01:05]}  Bxf2 {[%clk 0:00:02]} 44. Kg4 {[%clk 0:01:04]}  Bg3 {[%clk 0:00:02]} 45. Bd5 {[%clk 0:01:03]}  Rd7 {[%clk 0:00:01]} 46. Rxc5 {[%clk 0:01:00]}  Re7 {[%clk 0:00:01]} 47. Be4 {[%clk 0:01:00]}  Bf2 {[%clk 0:00:01]} 48. Rg5+ {[%clk 0:01:00]}  Kf8 {[%clk 0:00:02]} 49. Rh5 {[%clk 0:01:00]}  Rc7 {[%clk 0:00:01]} 50. Bd5 {[%clk 0:00:58]}  Ke7 {[%clk 0:00:02]} 51. Bxf7 {[%clk 0:00:53]}  Kxf7 {[%clk 0:00:02]} 52. Rh7+ {[%clk 0:00:53]}  Kg6 {[%clk 0:00:01]} 53. Rxc7 {[%clk 0:00:54]}  Bg3 {[%clk 0:00:01]} 54. Rc6+ {[%clk 0:00:53]}  Kf7 {[%clk 0:00:00]} 55. f4 {[%clk 0:00:53]} 1-0


[Site "https://www.chess.com"]